fUSD/lending_fUSD_20260121
["ID","MTS","AMOUNT","RATE_DAILY","PERIOD"]
[402931912,1768995039548,-500.0,0.00017492,2]
[402931913,1768995039558,-500.0,0.00017492,2]
[402931915,1768995039567,-150.0,0.00017492,2]
[402931917,1768995039577,-221.17629805,0.00017492,2]
[402931919,1768995039586,-150.0,0.00017492,2]
[402931921,1768995039596,-500.0,0.00017495,2]
[402931923,1768995039606,-500.0,0.00017495,2]
[402931924,1768995039615,-500.0,0.00017495,2]
[402931925,1768995039624,-23266.27927483,0.000175,2]
[402931926,1768995039634,-1313.0,0.00017505,2]
[402931927,1768995039644,-500.0,0.00017521,2]
[402931928,1768995039653,-150.0,0.00017521,2]
[402931929,1768995039662,-500.0,0.00017521,2]
[402931930,1768995039671,-150.0,0.00017521,2]
[402931931,1768995039680,-500.0,0.00017521,2]
[402931932,1768995039690,-500.0,0.00017521,2]
[402931933,1768995039699,-597.17918995,0.00017521,2]
[402931934,1768995039708,-500.0,0.00017521,2]
[402931935,1768995039717,-15636.69606705,0.00017522,2]
[402931936,1768995039727,-500.0,0.00017546,2]
[402931937,1768995039737,-500.0,0.00017546,2]
[402931939,1768995039746,-155.03086821,0.00017546,2]
[402931941,1768995039755,-150.0,0.00017546,2]
[402931943,1768995039763,-500.0,0.00017549,2]
[402931945,1768995039772,-500.0,0.00017549,2]
[402931947,1768995039781,-500.0,0.00017549,2]
[402931949,1768995039790,-15636.69606702,0.00017564,2]
[402931951,1768995039799,-500.0,0.00017576,2]
[402931953,1768995039808,-500.0,0.00017576,2]
[402931955,1768995039817,-150.0,0.00017576,2]
[402931957,1768995039826,-500.0,0.00017576,2]
[402931959,1768995039835,-304.75207679,0.00017576,2]
[402931961,1768995039844,-158.4322296,0.00017576,2]
[402931963,1768995039853,-500.0,0.00017576,2]
[402931965,1768995039863,-5888.0,0.00017584,2]
[402931967,1768995039872,-500.0,0.00017596,2]
[402931969,1768995039880,-500.0,0.00017601,2]
[402931970,1768995039889,-153.53248348,0.00017601,2]
[402931972,1768995039898,-150.0,0.00017601,2]
[402931974,1768995039907,-230.04153291,0.00017604,2]
[402931976,1768995039917,-150.0,0.00017604,2]
[402931978,1768995039926,-161.95810683,0.00017604,2]
[402931980,1768995039935,-500.0,0.00017604,2]
[402931982,1768995039944,-500.0,0.00017604,2]
[402931984,1768995039953,-15636.69606702,0.00017606,2]
[402931986,1768995039963,-324.97,0.00017618,2]
[402931988,1768995039972,-150.0,0.00017621,2]
[402931990,1768995039981,-150.0,0.00017621,2]
[402931992,1768995039990,-70433.9901,0.00017622,2]
[402931994,1768995040000,-6712.1881,0.00017622,2]
[402931996,1768995040010,-500.0,0.0001763,2]
[402931998,1768995040019,-500.0,0.0001763,2]
[402932000,1768995040028,-205.80435828,0.0001763,2]
[402932002,1768995040038,-500.0,0.0001763,2]
[402932004,1768995040047,-500.0,0.0001763,2]
[402932006,1768995040057,-7437.80400876,0.0001764,2]
[402932008,1768995040067,-15636.69606702,0.00017648,2]
[402932010,1768995040075,-500.0,0.00017656,2]
[402932012,1768995040084,-182.27113961,0.00017656,2]
[402932014,1768995040094,-161.18999075,0.00017659,2]
[402932016,1768995040103,-500.0,0.00017659,2]
[402932018,1768995040112,-500.0,0.00017659,2]
[402932020,1768995040121,-5888.0,0.00017676,2]
[402932022,1768995040130,-500.0,0.00017685,2]
[402932024,1768995040139,-500.0,0.00017685,2]
[402932026,1768995040148,-500.0,0.00017685,2]
[402932028,1768995040156,-500.0,0.00017685,2]
[402932030,1768995040165,-15636.69606702,0.0001769,2]
[402932032,1768995040175,-25542.716,0.00017691,2]
[402932034,1768995040183,-1299.44452273,0.00017693,2]
[402932036,1768995040192,-1898.0,0.000177,2]
[402932038,1768995040201,-500.0,0.00017711,2]
[402932040,1768995040210,-500.0,0.00017714,2]
[402932042,1768995040219,-500.0,0.00017714,2]
[402932044,1768995040228,-1524.719,0.00017717,2]
[402932046,1768995040237,-165.053,0.00017717,2]
[402932048,1768995040247,-1313.0,0.00017717,2]
[402932050,1768995040256,-15636.69606702,0.00017732,2]
[402932052,1768995040264,-200.0,0.00017737,2]
[402932054,1768995040273,-500.0,0.0001774,2]
[402932056,1768995040282,-500.0,0.0001774,2]
[402932058,1768995040291,-500.0,0.0001774,2]
[402932060,1768995040300,-500.0,0.0001774,2]
[402932062,1768995040308,-5237.20489654,0.00017743,2]
[402932064,1768995040325,-150.0,0.00017749,2]
[402932066,1768995040338,-500.0,0.00017766,2]
[402932069,1768995040347,-1776.55155692,0.00017766,2]
[402932071,1768995040356,-4688.34766652,0.00017766,2]
[402932073,1768995040365,-8270.80101134,0.00017766,2]
[402932075,1768995040375,-12372.62366884,0.00017766,2]
[402932077,1768995040384,-16740.5931,0.00017766,2]
[402932079,1768995040393,-500.0,0.00017769,2]
[402932081,1768995040403,-500.0,0.00017769,2]
[402932083,1768995040413,-1000.0,0.00017773,2]
[402932085,1768995040422,-15636.69606702,0.00017774,2]
[402932087,1768995040432,-305.22366862,0.00017781,2]
[402932088,1768995040440,-151.60783167,0.00017786,2]
[402932090,1768995040450,-151.0,0.00017788,2]
[402932092,1768995040459,-632.31,0.00017788,2]
[402932094,1768995040469,-150.0,0.0001779,2]
[402932097,1768995040479,-150.0,0.0001779,2]
[402932099,1768995040489,-150.0,0.0001779,2]
[402932101,1768995040504,-150.0,0.0001779,2]
[402932103,1768995040513,-241.89100513,0.0001779,2]
[402932105,1768995040523,-500.0,0.0001779,2]
[402932107,1768995040532,-500.0,0.0001779,2]
[402932108,1768995040543,-500.0,0.0001779,2]
[402932110,1768995040552,-500.0,0.0001779,2]
[402932113,1768995040562,-410.64373162,0.0001779,2]
[402932115,1768995040575,-500.0,0.0001779,2]
[402932117,1768995040584,-500.0,0.0001779,2]
[402932119,1768995040594,-511.10431069,0.0001779,2]
[402932121,1768995040603,-1000000.0,0.00017791,2]
[402932122,1768995040611,-1000.0,0.00017793,2]
[402932123,1768995040621,-500.0,0.00017795,2]
[402932125,1768995040631,-500.0,0.00017795,2]
[402932126,1768995040640,-500.0,0.00017795,2]
[402932128,1768995040649,-500.0,0.00017795,2]
[402932129,1768995040658,-500.0,0.00017799,2]
[402932131,1768995040668,-248.64134578,0.00017799,2]
[402932132,1768995040677,-525.49738681,0.00017799,2]
[402932134,1768995040686,-500.0,0.00017799,2]
[402932136,1768995040697,-512.94511846,0.00017799,2]
[402932137,1768995040708,-523.75764328,0.00017799,2]
[402932139,1768995040717,-421.9844121,0.00017799,2]
[402932140,1768995040727,-352.32557945,0.00017799,2]
[402932142,1768995040736,-500.0,0.00017799,2]
[402932143,1768995040746,-500.0,0.00017799,2]
[402932145,1768995040755,-1000.0,0.000178,2]
[402932146,1768995040764,-1000.0,0.00017805,2]
[402932148,1768995040773,-575.71488184,0.00017808,2]
[402932149,1768995040782,-1000.0,0.00017808,2]
[402932151,1768995040791,-1406.0,0.00017808,2]
[402932152,1768995040800,-1000.0,0.00017815,2]
[402932154,1768995040809,-15636.69606702,0.00017816,2]
[402932156,1768995040819,-500.0,0.0001782,2]
[402932157,1768995040828,-500.0,0.00017823,2]
[402932159,1768995040837,-500.0,0.00017823,2]
[402932160,1768995040847,-1000.0,0.00017829,2]
[402932162,1768995040856,-5224.98447911,0.0001783,2]
[402932164,1768995040866,-121784.26872133,0.0001783,2]
[402932165,1768995040875,-7285.0,0.00017831,2]
[402932167,1768995040885,-1313.0,0.0001784,2]
[402932169,1768995040901,-500.00000017,0.0001785,2]
[402932170,1768995040910,-500.0,0.0001785,2]
[402932172,1768995040920,-500.0,0.0001785,2]
[402932174,1768995040929,-500.0,0.0001785,2]
[402932175,1768995040938,-1000.0,0.00017854,2]
[402932177,1768995040948,-15636.69606702,0.00017858,2]
[402932178,1768995040958,-1500.0,0.00017868,2]
[402932180,1768995040967,-356.6893145,0.00017868,2]
[402932182,1768995040976,-500.0,0.0001787,2]
[402932183,1768995040986,-423.09968062,0.00017875,2]
[402932185,1768995040996,-500.0,0.00017878,2]
[402932187,1768995041006,-415.0,0.00017878,2]
[402932188,1768995041015,-1313.0,0.00017887,2]
[402932190,1768995041026,-1000.0,0.00017894,2]
[402932191,1768995041035,-2135.1202794,0.000179,3]
[402932193,1768995041045,-1000.0,0.000179,2]
[402932195,1768995041054,-3159.0769,0.000179,2]
[402932196,1768995041063,-5509.30096444,0.000179,3]
[402932198,1768995041072,-250.00005406,0.000179,2]
[402932199,1768995041081,-1000.0,0.000179,2]
[402932201,1768995041090,-13356.30675954,0.000179,2]
[402932203,1768995041099,-15636.69606702,0.000179,2]
[402932205,1768995041112,-500.0,0.000179,2]
[402932206,1768995041121,-500.0,0.000179,2]
[402932208,1768995041132,-500.0,0.000179,2]
[402932209,1768995041141,-500.0,0.000179,2]
[402932211,1768995041150,-500.0,0.000179,2]
[402932213,1768995041159,-500.0,0.000179,2]
[402932214,1768995041168,-500.0,0.000179,2]
[402932216,1768995041177,-500.0,0.000179,2]
[402932218,1768995041186,-500.0,0.000179,2]
[402932219,1768995041196,-500.0,0.000179,2]
[402932221,1768995041205,-500.0,0.000179,2]
[402932222,1768995041215,-500.0,0.000179,2]
[402932224,1768995041224,-500.0,0.000179,2]
[402932226,1768995041234,-500.0,0.000179,2]
[402932227,1768995041244,-500.0,0.000179,2]
[402932229,1768995041253,-500.0,0.000179,2]
[402932231,1768995041264,-500.0,0.000179,2]
[402932232,1768995041273,-500.0,0.000179,2]
[402932234,1768995041282,-500.0,0.000179,2]
[402932236,1768995041291,-500.0,0.000179,2]
[402932237,1768995041300,-500.0,0.000179,2]
[402932239,1768995041310,-500.0,0.000179,2]
[402932241,1768995041319,-500.0,0.000179,2]
[402932242,1768995041328,-500.0,0.000179,2]
[402932244,1768995041337,-500.0,0.000179,2]
[402932245,1768995041346,-500.0,0.000179,2]
[402932247,1768995041356,-500.0,0.000179,2]
[402932249,1768995041364,-500.0,0.000179,2]
[402932250,1768995041373,-500.0,0.000179,2]
[402932252,1768995041383,-500.0,0.000179,2]
[402932254,1768995041392,-9370.0,0.000179,2]
[402932255,1768995041401,-1000.0,0.00017904,2]
[402932257,1768995041409,-1000.0,0.00017904,2]
[402932259,1768995041419,-500.0,0.00017904,2]
[402932260,1768995041429,-389.65716214,0.00017904,2]
[402932262,1768995041438,-500.0,0.00017904,2]
[402932263,1768995041447,-1000.0,0.00017923,2]
[402932265,1768995041457,-1027.83837402,0.00017926,2]
[402932267,1768995041466,-150.0,0.0001793,2]
[402932268,1768995041474,-500.0,0.00017933,2]
[402932270,1768995041484,-1000.0,0.00017933,2]
[402932271,1768995041496,-166.47,0.00017935,2]
[402932273,1768995041506,-5888.0,0.00017941,2]
[402932275,1768995041515,-1000.0,0.00017954,2]
[402932276,1768995041524,-150.0,0.00017958,2]
[402932277,1768995041534,-500.0,0.00017959,2]
[402932278,1768995041543,-500.0,0.00017959,2]
[402932279,1768995041552,-1000.0,0.00017966,2]
[402932280,1768995041560,-150.01133666,0.00017966,2]
[402932281,1768995041571,-1000.0,0.00017969,2]
[402932282,1768995041580,-1000.0,0.0001797,2]
[402932283,1768995041589,-500.0,0.0001797,2]
[402932284,1768995041599,-1000.0,0.0001797,2]
[402932285,1768995041608,-1000.0,0.0001797,2]
[402932286,1768995041618,-500.0,0.0001797,2]
[402932287,1768995041628,-1321.57411122,0.0001797,2]
[402932288,1768995041637,-694.631145,0.0001797,2]
[402932289,1768995041646,-30553.0,0.00017973,2]
[402932290,1768995041655,-15055.0,0.00017973,2]
[402932291,1768995041664,-500.12560695,0.00017973,2]
[402932292,1768995041674,-500.0,0.00017973,2]
[402932293,1768995041683,-500.0,0.00017973,2]
[402932294,1768995041692,-257.99612183,0.00017973,2]
[402932295,1768995041701,-500.0,0.00017973,2]
[402932296,1768995041710,-550.70733566,0.00017973,2]
[402932297,1768995041719,-500.15189466,0.00017973,2]
[402932298,1768995041728,-500.0,0.00017973,2]
[402932299,1768995041737,-500.0,0.00017973,2]
[402932300,1768995041746,-500.0,0.00017973,2]
[402932301,1768995041755,-500.0,0.00017973,2]
[402932302,1768995041764,-150.0,0.00017973,2]
[402932303,1768995041773,-159.96427776,0.00017973,2]
[402932304,1768995041782,-500.0,0.00017973,2]
[402932305,1768995041792,-500.0,0.00017973,2]
[402932306,1768995041803,-500.0,0.00017973,2]
[402932307,1768995041812,-500.0,0.00017973,2]
[402932308,1768995041821,-500.0,0.00017973,2]
[402932309,1768995041830,-150.0,0.00017973,2]
[402932310,1768995041838,-500.0,0.00017982,2]
[402932311,1768995041847,-1000.0,0.00017984,2]
[402932312,1768995041856,-500.0,0.00017988,2]
[402932313,1768995041865,-305.22366862,0.0001799,2]
[402932314,1768995041874,-305.22366862,0.0001799,2]
[402932315,1768995041882,-219.62857517,0.00017992,2]
[402932316,1768995041891,-151.0,0.00017997,2]
[402932317,1768995041900,-500.0,0.00017999,2]
[402932318,1768995041909,-500.0,0.00017999,2]
[402932319,1768995041918,-500.0,0.00017999,2]
[402932320,1768995041926,-500.0,0.00017999,2]
[402932321,1768995041935,-500.0,0.00017999,2]
[402932322,1768995041944,-500.0,0.00017999,2]
[402932323,1768995041953,-352.34,0.00017999,2]
[402932324,1768995041962,-300.0,0.00017999,2]
[402932325,1768995041971,-300.0,0.00017999,2]
[402932326,1768995041979,-666.0,0.00017999,2]
[402932327,1768995041988,-500.0,0.00017999,2]
[402932328,1768995041997,-300.0,0.00017999,2]
[402932329,1768995042005,-500.0,0.00017999,2]
[402932330,1768995042015,-500.0,0.00017999,2]
[402932331,1768995042024,-300.0,0.00017999,2]
[402932332,1768995042033,-666.0,0.00017999,2]
[402932333,1768995042044,-300.0,0.00017999,2]
[402932334,1768995042053,-500.0,0.00017999,2]
[402932335,1768995042062,-500.0,0.00017999,2]
[402932336,1768995042071,-534.13337632,0.00017999,2]
[402932337,1768995042080,-500.0,0.00017999,2]
[402932338,1768995042089,-500.0,0.00017999,2]
[402932339,1768995042098,-500.0,0.00017999,2]
[402932340,1768995042107,-500.0,0.00017999,2]
[402932341,1768995042116,-500.0,0.00017999,2]
[402932342,1768995042125,-500.0,0.00017999,2]
[402932343,1768995042134,-500.0,0.00017999,2]
[402932344,1768995042143,-500.0,0.00017999,2]
[402932345,1768995042152,-374.17567263,0.00017999,2]
[402932346,1768995042161,-2071345.68295259,0.00018,2]
[402932356,1768995042893,-7597.44438473,0.00018,2]
[402932357,1768995042905,-6251.40605885,0.00018,2]
[402932358,1768995043469,-1.7e-07,0.00018,2]
[402932359,1768995043531,-131855.31088018,0.00018,2]
[402932360,1768995043542,-266014.68616869,0.00018,2]
[402932361,1768995043917,-503.16719895,0.00017469,2]
[402932362,1768995043927,-38.73794811,0.00018,2]
[402932363,1768995043938,-2856.6204109,0.00018,2]
[402932364,1768995043949,-500.0,0.00018,2]
[402932365,1768995043961,-612.97467943,0.00018,2]
[402932366,1768995043995,-1174.910634,0.00018,2]
[402932367,1768995044006,-740.39071647,0.00018,2]
[402932368,1768995044017,-253.88923684,0.00018,2]
[402932369,1768995044030,-11209.82952769,0.00018,2]
[402932370,1768995044064,-417.21740752,0.00018,2]
[402932371,1768995044076,-306.23900044,0.00018,2]
[402932373,1768995045630,-151.0,0.00017807,2]
[402932374,1768995045641,-1637.92,0.00018,2]
[402932375,1768995045683,-21071.92568813,0.00018,2]
[402932377,1768995110835,-562.60926168,0.00016612,2]
[402932378,1768995113428,-201.1,0.00016612,2]
[402932379,1768995116086,-151.08296096,0.00016612,2]
[402932381,1768995184889,-51757.0,0.00043087,59]
[402932382,1768995184964,-7483.5232343,0.00043087,120]
[402932383,1768995185032,-5000.0,0.00043087,120]
[402932384,1768995185099,-5000.0,0.00043087,120]
[402932385,1768995185167,-5000.0,0.00043087,120]
[402932386,1768995185234,-5000.0,0.00043087,120]
[402932387,1768995185298,-5000.0,0.00043087,120]
[402932388,1768995185360,-5000.0,0.00043087,120]
[402932389,1768995185436,-5000.0,0.00043087,120]
[402932390,1768995185501,-5000.0,0.00043087,120]
[402932391,1768995185567,-5000.0,0.00043087,120]
[402932392,1768995185633,-5000.0,0.00043087,120]
[402932393,1768995185697,-9393.45415148,0.00043087,30]
[402932394,1768995185760,-1753.88,0.00043087,120]
[402932395,1768995185826,-5000.0,0.00043087,120]
[402932396,1768995185893,-5000.0,0.00043087,120]
[402932397,1768995185960,-3000.0,0.00043087,120]
[402932398,1768995186026,-43887.4,0.00043087,120]
[402932399,1768995186088,-500.0,0.00043087,120]
[402932400,1768995186152,-499.30106717,0.00043087,120]
[402932401,1768995186217,-500.0,0.00043087,120]
[402932402,1768995186283,-500.0,0.00043087,120]
[402932403,1768995186348,-500.0,0.00043087,120]
[402932404,1768995186407,-605.57937981,0.00043087,120]
[402932405,1768995186465,-500.0,0.00043087,120]
[402932406,1768995186524,-500.0,0.00043087,120]
[402932407,1768995186587,-500.0,0.00043087,120]
[402932408,1768995186644,-500.0,0.00043087,120]
[402932409,1768995186701,-500.0,0.00043087,120]
[402932410,1768995186757,-500.0,0.00043087,120]
[402932411,1768995186812,-500.0,0.00043087,120]
[402932412,1768995186868,-500.0,0.00043087,120]
[402932413,1768995186936,-282.35221237,0.00043087,120]
[402932414,1768995187006,-500.0,0.00043087,120]
[402932415,1768995187076,-500.0,0.00043087,120]
[402932416,1768995187143,-500.0,0.00043087,120]
[402932417,1768995187208,-500.0,0.00043087,120]
[402932418,1768995187273,-500.0,0.00043087,120]
[402932419,1768995187335,-500.0,0.00043087,120]
[402932420,1768995187399,-505.43193373,0.00043087,120]
[402932421,1768995187463,-500.0,0.00043087,120]
[402932422,1768995187524,-500.0,0.00043087,120]
[402932423,1768995187588,-500.0,0.00043087,120]
[402932424,1768995187648,-500.0,0.00043087,120]
[402932425,1768995187710,-500.0,0.00043087,120]
[402932426,1768995187771,-500.0,0.00043087,120]
[402932427,1768995187832,-500.0,0.00043087,120]
[402932428,1768995187900,-500.0,0.00043087,120]
[402932429,1768995187967,-562.20595625,0.00043087,120]
[402932430,1768995188033,-500.0,0.00043087,120]
[402932431,1768995188099,-500.0,0.00043087,120]
[402932432,1768995188167,-500.0,0.00043087,120]
[402932433,1768995188233,-500.0,0.00043087,120]
[402932434,1768995188298,-500.0,0.00043087,120]
[402932435,1768995188363,-347.32053046,0.00043087,120]
[402932436,1768995188436,-500.0,0.00043087,120]
[402932437,1768995188498,-514.07809604,0.00043087,120]
[402932438,1768995188564,-500.0,0.00043087,120]
[402932439,1768995188628,-500.0,0.00043087,120]
[402932440,1768995188691,-500.0,0.00043087,120]
[402932441,1768995188754,-500.0,0.00043087,120]
[402932442,1768995188816,-473.68,0.00043087,120]
[402932443,1768995188875,-500.0,0.00043087,120]
[402932444,1768995188937,-500.0,0.00043087,120]
[402932445,1768995189003,-500.0,0.00043087,120]
[402932446,1768995189069,-500.0,0.00043087,120]
[402932447,1768995189142,-500.0,0.00043087,120]
[402932448,1768995189206,-500.0,0.00043087,120]
[402932449,1768995189269,-500.0,0.00043087,120]
[402932450,1768995189330,-500.0,0.00043087,120]
[402932451,1768995189390,-500.0,0.00043087,120]
[402932452,1768995189451,-500.0,0.00043087,120]
[402932453,1768995189509,-224.4919567,0.00043087,120]
[402932454,1768995189570,-500.0,0.00043087,120]
[402932455,1768995189632,-500.0,0.00043087,120]
[402932456,1768995189693,-500.0,0.00043087,120]
[402932457,1768995189983,-500.0,0.00043087,120]
[402932458,1768995190053,-500.0,0.00043087,120]
[402932459,1768995190119,-500.0,0.00043087,120]
[402932460,1768995190182,-500.0,0.00043087,120]
[402932461,1768995190241,-354.92748523,0.00043087,120]
[402932462,1768995190299,-500.0,0.00043087,120]
[402932463,1768995190356,-500.0,0.00043087,120]
[402932464,1768995190413,-500.0,0.00043087,120]
[402932465,1768995190470,-500.0,0.00043087,120]
[402932466,1768995190529,-500.0,0.00043087,120]
[402932467,1768995190592,-500.0,0.00043087,120]
[402932468,1768995190654,-500.0,0.00043087,120]
[402932469,1768995190713,-500.0,0.00043087,120]
[402932470,1768995190773,-500.0,0.00043087,120]
[402932471,1768995190830,-500.0,0.00043087,120]
[402932472,1768995190889,-500.0,0.00043087,120]
[402932473,1768995190951,-500.0,0.00043087,120]
[402932474,1768995191016,-500.0,0.00043087,120]
[402932475,1768995191076,-500.0,0.00043087,120]
[402932476,1768995191138,-500.0,0.00043087,120]
[402932477,1768995191203,-500.0,0.00043087,120]
[402932478,1768995191267,-500.0,0.00043087,120]
[402932479,1768995191329,-153.34592143,0.00043087,120]
[402932480,1768995191392,-504.17514042,0.00043087,120]
[402932481,1768995191454,-506.80492726,0.00043087,120]
[402932482,1768995191515,-500.0,0.00043087,120]
[402932483,1768995191577,-501.84564039,0.00043087,120]
[402932484,1768995191635,-500.0,0.00043087,120]
[402932485,1768995191694,-500.0,0.00043087,120]
[402932486,1768995191750,-500.0,0.00043087,120]
[402932487,1768995191804,-522.61379562,0.00043087,120]
[402932488,1768995191859,-500.0,0.00043087,120]
[402932489,1768995191916,-500.0,0.00043087,120]
[402932490,1768995191976,-171.01085351,0.00043087,120]
[402932491,1768995192040,-500.0,0.00043087,120]
[402932492,1768995192100,-463.68154862,0.00043087,120]
[402932493,1768995192172,-500.0,0.00043087,120]
[402932494,1768995192236,-500.0,0.00043087,120]
[402932495,1768995192297,-500.0,0.00043087,120]
[402932496,1768995192358,-500.0,0.00043087,120]
[402932497,1768995192418,-500.0,0.00043087,120]
[402932498,1768995192476,-500.0,0.00043087,120]
[402932499,1768995192536,-500.0,0.00043087,120]
[402932500,1768995192598,-500.0,0.00043087,120]
[402932501,1768995192657,-500.0,0.00043087,120]
[402932502,1768995192714,-500.0,0.00043087,120]
[402932503,1768995192772,-522.321657,0.00043087,120]
[402932504,1768995192829,-500.0,0.00043087,120]
[402932505,1768995192889,-500.0,0.00043087,120]
[402932506,1768995192953,-500.0,0.00043087,120]
[402932507,1768995193016,-500.0,0.00043087,120]
[402932508,1768995193081,-500.0,0.00043087,120]
[402932509,1768995193147,-500.0,0.00043087,120]
[402932510,1768995193212,-500.0,0.00043087,120]
[402932511,1768995193278,-500.0,0.00043087,120]
[402932512,1768995193341,-500.0,0.00043087,120]
[402932513,1768995193403,-500.0,0.00043087,120]
[402932514,1768995193464,-500.0,0.00043087,120]
[402932515,1768995193525,-367.26286254,0.00043087,120]
[402932516,1768995193590,-500.0,0.00043087,120]
[402932517,1768995193651,-500.0,0.00043087,120]
[402932518,1768995193711,-500.0,0.00043087,120]
[402932519,1768995193770,-500.0,0.00043087,120]
[402932520,1768995193830,-500.0,0.00043087,120]
[402932521,1768995193890,-500.0,0.00043087,120]
[402932522,1768995193954,-500.0,0.00043087,120]
[402932523,1768995194021,-500.0,0.00043087,120]
[402932524,1768995194087,-500.0,0.00043087,120]
[402932525,1768995194152,-500.0,0.00043087,120]
[402932526,1768995194218,-500.0,0.00043087,120]
[402932527,1768995194285,-392.97579847,0.00043087,120]
[402932528,1768995194347,-500.0,0.00043087,120]
[402932529,1768995194408,-500.0,0.00043087,120]
[402932530,1768995194469,-500.0,0.00043087,120]
[402932531,1768995194529,-458.6633698,0.00043087,120]
[402932532,1768995194594,-301.49000088,0.00043087,120]
[402932533,1768995194656,-500.0,0.00043087,120]
[402932534,1768995194722,-500.0,0.00043087,120]
[402932535,1768995194784,-500.0,0.00043087,120]
[402932536,1768995194844,-500.0,0.00043087,120]
[402932537,1768995194907,-581.67932323,0.00043087,120]
[402932538,1768995194974,-500.0,0.00043087,120]
[402932539,1768995195039,-500.0,0.00043087,120]
[402932540,1768995195103,-500.0,0.00043087,120]
[402932541,1768995195169,-500.0,0.00043087,120]
[402932542,1768995195235,-500.0,0.00043087,120]
[402932543,1768995195300,-500.0,0.00043087,120]
[402932544,1768995195365,-500.0,0.00043087,120]
[402932545,1768995195429,-500.0,0.00043087,120]
[402932546,1768995195496,-500.0,0.00043087,120]
[402932547,1768995195579,-500.0,0.00043087,120]
[402932548,1768995195648,-310.61826586,0.00043087,120]
[402932549,1768995195715,-500.0,0.00043087,120]
[402932550,1768995195783,-500.0,0.00043087,120]
[402932551,1768995195852,-500.0,0.00043087,120]
[402932552,1768995196076,-500.0,0.00043087,120]
[402932553,1768995196145,-500.0,0.00043087,120]
[402932554,1768995196212,-500.0,0.00043087,120]
[402932555,1768995196278,-500.0,0.00043087,120]
[402932556,1768995196346,-500.0,0.00043087,120]
[402932557,1768995196412,-500.0,0.00043087,120]
[402932558,1768995196478,-500.0,0.00043087,120]
[402932559,1768995196546,-596.71150767,0.00043087,120]
[402932560,1768995196611,-500.0,0.00043087,120]
[402932561,1768995196676,-500.0,0.00043087,120]
[402932562,1768995196741,-500.0,0.00043087,120]
[402932563,1768995196808,-500.0,0.00043087,120]
[402932564,1768995196874,-500.0,0.00043087,120]
[402932565,1768995196950,-500.0,0.00043087,120]
[402932566,1768995197027,-500.0,0.00043087,120]
[402932567,1768995197106,-500.0,0.00043087,120]
[402932568,1768995197172,-345.34980857,0.00043087,120]
[402932569,1768995197237,-500.0,0.00043087,120]
[402932570,1768995197304,-500.0,0.00043087,120]
[402932571,1768995197370,-500.0,0.00043087,120]
[402932572,1768995197437,-500.0,0.00043087,120]
[402932573,1768995197504,-500.0,0.00043087,120]
[402932574,1768995197571,-500.0,0.00043087,120]
[402932575,1768995197636,-417.12994202,0.00043087,120]
[402932576,1768995197701,-500.0,0.00043087,120]
[402932577,1768995197764,-500.0,0.00043087,120]
[402932578,1768995197826,-500.0,0.00043087,120]